Workbook

Sheet MSU
B1: Atte Kortehisto | E1: 14.4.2003 Nurmo
B2: SUPERPESIS | E2: Runkosarja | I2: Kärkilyönnit (KL), pesänvälit | P2: Runkosarja TOP-30 | U2: Ylempi loppusarja | AB2: Ylempi loppusarja TOP-10 | AG2: Play off, voitot, voittoprosentti | AL2: Arvo-ottelut | AO2: Mitalit
B3: Vuosi | C3: Sija | D3: Seura | E3: OTT | F3: KUN | G3: LÖI | H3: TOI | I3: KL | J3: 0 > 1 | K3: 1 > 2 | L3: 2 > 3 | M3: 3 > k | N3: KL-% | P3: LÖI | Q3: TOI | R3: L+T | S3: KL | U3: OTT | V3: KUN | W3: LÖI | X3: TOI | Y3: KL | Z3: KL-% | AB3: LÖI | AC3: TOI | AD3: L+T | AE3: KL | AG3: Puolivälierät | AH3: Välierät | AI3: Pronssi | AJ3: Finaalit | AL3: IL | AM3: LL | AN3: hSM | AO3: K | AP3: H | AQ3: P
B4: 2019 | C4: 5. | D4: ViVe 2 | F4: suomensarja
B5: 2020 | C5: 1. | D5: ViVe 2 | F5: suomensarja
B6: 2021 | C6: 1. | D6: ViVe 2 | F6: suomensarja
B7: 2022 | C7: 2. | D7: ViVe 2 | F7: suomensarja
B8: 2022 | C8: 10. | D8: APV | F8: ykköspesis
B9: 2023 | C9: 11. | D9: APV | F9: ykköspesis
B10: 2023 | C10: 2. | D10: ViVe | E10: 1 | F10: 0 | G10: 0 | H10: 2 | I10: 1 | J10: 1 | K10: 0 | L10: 0 | M10: 0 | N10: 50.0 % | O10: 2 | AP10: 1
B11: Yhteensä | E11: =SUM(E4:E10) -> 1 | F11: 0 | G11: 0 | H11: 2 | I11: 1 | J11: 1 | K11: 0 | L11: 0 | M11: 0 | N11: =PRODUCT(I11/O11) -> 50.0 % | O11: =SUM(O3:O10) -> 2 | P11: 0-0-0 | Q11: 0-0-0 | R11: 0-0-0 | S11: 0-0-0 | U11: =SUM(U8:U10) -> 0 | V11: =SUM(V8:V10) -> 0 | W11: =SUM(W8:W10) -> 0 | X11: =SUM(X8:X10) -> 0 | Y11: =SUM(Y8:Y10) -> 0 | Z11: =PRODUCT(N17) -> 0.0 % | AB11: 0-0-0 | AC11: 0-0-0 | AD11: 0-0-0 | AE11: 0-0-0 | AL11: =SUM(AL4:AL10) -> 0 | AM11: 0 | AN11: 0 | AO11: 0 | AP11: 1 | AQ11: 0
B13: Pesispörssi | D13: =SUM(F11:H11)+((I11-F11-G11)/3)+(E11/3)+(AL11*25)+(AM11*25)+(AN11*10)+(AO11*25)+(AP11*20)+(AQ11*15)-20 -> 2.7
B15: URA SUPERISSA | E15: OTT | F15: KUN | G15: LÖI | H15: TOI | I15: KL | K15: ka/L | L15: ka/T | M15: ka/KL | N15: KL-% | P15: ENSIMMÄISET RUNKOSARJASSA | AG15: ENSIMMÄISET PUDOTUSPELEISSÄ | AL15: YLEISÖ
B16: Runkosarja | E16: =PRODUCT(E11) -> 1 | F16: =PRODUCT(F11) -> 0 | G16: =PRODUCT(G11) -> 0 | H16: =PRODUCT(H11) -> 2 | I16: =PRODUCT(I11) -> 1 | K16: =PRODUCT((F16+G16)/E16) -> 0.00 | L16: =PRODUCT(H16/E16) -> 2.00 | M16: =PRODUCT(I16/E16) -> 1.00 | N16: =PRODUCT(N11) -> 50.0 % | O16: =PRODUCT(O11) -> 2 | P16: Ottelu | R16: 05.07. 2023 IPV - ViVe 0-2 (2-10, 2-3) | AB16: 1. ottelu | AD16: 20 v 2 kk 21 pv | AG16: Ottelu
B17: Ylempi loppusarja | P17: Lyöty | AG17: Lyöty
B18: Alempi loppusarja | P18: Tuotu | R18: 05.07. 2023 IPV - ViVe 0-2 (2-10, 2-3) | AB18: 1. ottelu | AD18: 20 v 2 kk 21 pv | AG18: Tuotu
B19: KAIKKI | E19: =SUM(E16:E18) -> 1 | F19: =SUM(F16:F18) -> 0 | G19: =SUM(G16:G18) -> 0 | H19: =SUM(H16:H18) -> 2 | I19: =SUM(I16:I18) -> 1 | K19: =PRODUCT((F19+G19)/E19) -> 0.00 | L19: =PRODUCT(H19/E19) -> 2.00 | M19: =PRODUCT(I19/E19) -> 1.00 | N19: =PRODUCT(I19/O19) -> 50.0 % | O19: =SUM(O16:O18) -> 2 | P19: Kunnari | AG19: Kunnari
O20: =SUM(O17:O19) -> 2
B21: Seurat | D21: NJ = Nurmon Jymy (1925), kasvattajaseura
D22: ViVe = Vimpelin Veto (1934)
D23: APV = Alavuden Peli-Veikot (1953)

Sheet MYP, MSS
B1: Atte Kortehisto | E1: 14.4.2003 Nurmo
B2: YKKÖSPESIS | E2: Runkosarja | L2: Runkosarja TOP-10 | Q2: Jatkosarjat | X2: SUOMENSARJA | AA2: Runkosarja | AH2: Runkosarja TOP-10 | AM2: Jatkosarjat
B3: Vuosi | C3: Sija | D3: Seura | E3: OTT | F3: KUN | G3: LÖI | H3: TOI | I3: KL | J3: KL-% | L3: LÖI | M3: TOI | N3: L+T | O3: KL | Q3: OTT | R3: KUN | S3: LÖI | T3: TOI | U3: KL | V3: KL-% | X3: Vuosi | Y3: Sija | Z3: Seura | AA3: OTT | AB3: KUN | AC3: LÖI | AD3: TOI | AE3: KL | AF3: KL-% | AH3: LÖI | AI3: TOI | AJ3: L+T | AK3: KL | AM3: OTT | AN3: KUN | AO3: LÖI | AP3: TOI | AQ3: KL | AR3: KL-%
X4: 2019 | Y4: 5. | Z4: ViVe 2 | AA4: 5 | AB4: 0 | AC4: 1 | AD4: 7 | AE4: 19 | AF4: 47.5 % | AG4: 40
X5: 2020 | Y5: 1. | Z5: ViVe 2 | AA5: 3 | AB5: 0 | AC5: 0 | AD5: 8 | AE5: 10 | AF5: 71.4 % | AG5: 14 | AM5: 2 | AN5: 0 | AO5: 0 | AP5: 3 | AQ5: 7 | AR5: 53.8 % | AS5: 13
X6: 2021 | Y6: 1. | Z6: ViVe 2 | AA6: 11 | AB6: 0 | AC6: 7 | AD6: 25 | AE6: 48 | AF6: 71.6 % | AG6: 67 | AM6: 5 | AN6: 0 | AO6: 3 | AP6: 14 | AQ6: 20 | AR6: 55.6 % | AS6: 36
B7: 2022 | C7: 10. | D7: APV | E7: 10 | F7: 1 | G7: 0 | H7: 15 | I7: 38 | J7: 61.3 % | K7: 62 | Q7: 2 | R7: 0 | S7: 0 | T7: 5 | U7: 12 | V7: 75.0 % | W7: 16 | X7: 2022 | Y7: 2. | Z7: ViVe 2 | AA7: 1 | AB7: 0 | AC7: 0 | AD7: 4 | AE7: 5 | AF7: 83.3 % | AG7: 6
B8: 2023 | C8: 11. | D8: APV | E8: 18 | F8: 0 | G8: 1 | H8: 22 | I8: 75 | J8: 62.0 % | K8: 121 | Q8: 5 | R8: 0 | S8: 0 | T8: 6 | U8: 21 | V8: 56.8 % | W8: 37
B9: YHTEENSÄ | E9: =SUM(E4:E8) -> 28 | F9: =SUM(F4:F8) -> 1 | G9: 1 | H9: 37 | I9: 113 | J9: =PRODUCT(I9/K9) -> 61.7 % | K9: =SUM(K4:K8) -> 183 | Q9: =SUM(Q4:Q8) -> 7 | R9: =SUM(R4:R8) -> 0 | S9: 0 | T9: 11 | U9: 33 | V9: =PRODUCT(U9/W9) -> 62.3 % | W9: =SUM(W4:W8) -> 53 | X9: YHTEENSÄ | AA9: =SUM(AA4:AA8) -> 20 | AB9: =SUM(AB4:AB8) -> 0 | AC9: 8 | AD9: 44 | AE9: 82 | AF9: =PRODUCT(AE9/AG9) -> 64.6 % | AG9: 127 | AM9: =SUM(AM4:AM8) -> 7 | AN9: =SUM(AN4:AN8) -> 0 | AO9: 3 | AP9: 17 | AQ9: 27 | AR9: =PRODUCT(AQ9/AS9) -> 55.1 % | AS9: =SUM(AS4:AS8) -> 49
B11: KAIKKI OTTELUT | E11: OTT | F11: KUN | G11: LÖI | H11: TOI | I11: KL | J11: KL-% | L11: ka/L | M11: ka/T | N11: ka/l+t | O11: ka/kl | R11: Seurat | T11: NJ = Nurmon Jymy (1925), kasvattajaseura
B12: SUPERPESIS | E12: 0 | F12: 0 | G12: 0 | H12: 0 | I12: 0 | J12: 0.0 % | L12: 0.00 | M12: 0.00 | N12: 0.00 | O12: 0.00 | T12: ViVe = Vimpelin Veto (1934)
B13: YKKÖSPESIS | E13: =PRODUCT(E9+Q9) -> 35 | F13: =PRODUCT(F9+R9) -> 1 | G13: =PRODUCT(G9+S9) -> 1 | H13: =PRODUCT(H9+T9) -> 48 | I13: =PRODUCT(I9+U9) -> 146 | J13: =PRODUCT(I13/K13) -> 61.9 % | K13: =PRODUCT(K9+W9) -> 236 | L13: =PRODUCT((F13+G13)/E13) -> 0.06 | M13: =PRODUCT(H13/E13) -> 1.37 | N13: =PRODUCT((F13+G13+H13)/E13) -> 1.43 | O13: =PRODUCT(I13/E13) -> 4.17 | T13: APV = Alavuden Peli-Veikot (1953)
B14: SUOMENSARJA | E14: =PRODUCT(AA9+AM9) -> 27 | F14: =PRODUCT(AB9+AN9) -> 0 | G14: =PRODUCT(AC9+AO9) -> 11 | H14: =PRODUCT(AD9+AP9) -> 61 | I14: =PRODUCT(AE9+AQ9) -> 109 | J14: =PRODUCT(I14/K14) -> 61.9 % | K14: =PRODUCT(AG9+AS9) -> 176 | L14: =PRODUCT((F14+G14)/E14) -> 0.41 | M14: =PRODUCT(H14/E14) -> 2.26 | N14: =PRODUCT((F14+G14+H14)/E14) -> 2.67 | O14: =PRODUCT(I14/E14) -> 4.04
B15: YHTEENSÄ | E15: =SUM(E12:E14) -> 62 | F15: =SUM(F12:F14) -> 1 | G15: 12 | H15: 109 | I15: 255 | J15: =PRODUCT(I15/K15) -> 61.9 % | K15: =SUM(K12:K14) -> 412 | L15: =PRODUCT((F15+G15)/E15) -> 0.21 | M15: =PRODUCT(H15/E15) -> 1.76 | N15: =PRODUCT((F15+G15+H15)/E15) -> 1.97 | O15: =PRODUCT(I15/E15) -> 4.11

Sheet Arvo-ottelut
B1: ITÄ - LÄNSI - KORTTI
B2: Atte Kortehisto | C2: 14.4.2003 Nurmo
B3: POJAT | C3: Itä - Länsi, tulos | D3: Joukkue | E3: Seura | G3: V | H3: T | I3: H | J3: Up. | K3: Lj. | L3: Palk. | M3: O | N3: K | O3: L | P3: T | Q3: KL | R3: 1 | S3: 2 | T3: 3 | U3: k | V3: KL-% | W3: Pelinjohtaja | X3: Yleisöä
B4: 09.07. 2022 Tampere | C4: 1-2 (5-0, 4-6, 0-1) | D4: Länsi | E4: HP-K | G4: 1 | J4: 2v | K4: 3 | M4: 1 | P4: 2 | Q4: 3/7 | S4: 3/4 | T4: 0/3 | V4: 43.9 % | W4: Kari Kleemola | X4: 977

Sheet Kärkilyönnit
B1: KÄRKILYÖNNIT RUNKOSARJASSA | V1: VUOSITTAISET SIJOITUKSET TOP - 30
G2: 0 > 1 | J2: 1 > 2 | M2: 2 > 3 | P2: 3 > k | S2: Yhteensä
B3: Vuosi | C3: Sija | D3: Seura | E3: OTT | F3: KL | G3: YHT | H3: % | I3: KL | J3: YHT | K3: % | L3: KL | M3: YHT | N3: % | O3: KL | P3: YHT | Q3: % | R3: KL | S3: YHT | T3: % | V3: Vuosi | W3: Sija | X3: Seura | Y3: 0 > 1 | Z3: 1 > 2 | AA3: 2 > 3 | AB3: 3 > k | AC3: KL
B5: 2023 | C5: 1. | D5: ViVe | E5: 1 | F5: 1 | G5: 2 | H5: 50.0 % | I5: 0 | J5: 0 | K5: 0.0 % | L5: 0 | M5: 0 | N5: 0.0 % | O5: 0 | P5: 0 | Q5: 0.0 % | R5: 1 | S5: 2 | T5: 50.0 % | V5: 2023 | W5: 1. | X5: ViVe
B6: Yhteensä | E6: =SUM(E4:E5) -> 1 | F6: =SUM(F4:F5) -> 1 | G6: =SUM(G4:G5) -> 2 | H6: =PRODUCT(F6/G6) -> 50.0 % | I6: =SUM(I4:I5) -> 0 | J6: =SUM(J4:J5) -> 0 | K6: =PRODUCT(I6/J6) ->  | L6: =SUM(L4:L5) -> 0 | M6: =SUM(M4:M5) -> 0 | N6: =PRODUCT(L6/M6) ->  | O6: =SUM(O4:O5) -> 0 | P6: =SUM(P4:P5) -> 0 | Q6: =PRODUCT(O6/P6) ->  | R6: =SUM(R4:R5) -> 1 | S6: =SUM(S4:S5) -> 2 | T6: =PRODUCT(R6/S6) -> 50.0 %
B8: KÄRKILYÖNNIT YLEMMISSÄ PUDOTUSPELEISSÄ | V8: VUOSITTAISET SIJOITUKSET TOP - 30
G9: 0 > 1 | J9: 1 > 2 | M9: 2 > 3 | P9: 3 > k | S9: Yhteensä
B10: Vuosi | C10: Sija | D10: Seura | E10: OTT | F10: KL | G10: YHT | H10: % | I10: KL | J10: YHT | K10: % | L10: KL | M10: YHT | N10: % | O10: KL | P10: YHT | Q10: % | R10: KL | S10: YHT | T10: % | V10: Vuosi | W10: Sija | X10: Seura | Y10: 0 > 1 | Z10: 1 > 2 | AA10: 2 > 3 | AB10: 3 > k | AC10: KL
B13: Yhteensä | E13: =SUM(E9:E12) -> 0 | F13: =SUM(F11:F12) -> 0 | G13: =SUM(G11:G12) -> 0 | H13: =PRODUCT(F13/G13) ->  | I13: =SUM(I11:I12) -> 0 | J13: =SUM(J11:J12) -> 0 | K13: =PRODUCT(I13/J13) ->  | L13: =SUM(L11:L12) -> 0 | M13: =SUM(M11:M12) -> 0 | N13: =PRODUCT(L13/M13) ->  | O13: =SUM(O11:O12) -> 0 | P13: =SUM(P11:P12) -> 0 | Q13: =PRODUCT(O13/P13) ->  | R13: =SUM(R11:R12) -> 0 | S13: =SUM(S11:S12) -> 0 | T13: =PRODUCT(R13/S13) -> 
B15: KÄRKILYÖNNIT
G16: 0 > 1 | J16: 1 > 2 | M16: 2 > 3 | P16: 3 > k | S16: Yhteensä
E17: OTT | F17: KL | G17: YHT | H17: % | I17: KL | J17: YHT | K17: % | L17: KL | M17: YHT | N17: % | O17: KL | P17: YHT | Q17: % | R17: KL | S17: YHT | T17: %
B18: RUNKOSARJA | E18: =PRODUCT(E6) -> 1 | F18: 1 | G18: 2 | H18: 50.0 % | I18: 0 | J18: 0 | L18: 0 | M18: 0 | O18: 0 | P18: 0 | R18: 1 | S18: 2 | T18: 50.0 %
B19: PLAY OFF | E19: =PRODUCT(E13) -> 0 | F19: =PRODUCT(F13) -> 0 | G19: 0 | I19: 0 | J19: 0 | L19: 0 | M19: 0 | O19: 0 | P19: 0 | R19: 0 | S19: 0
